bitfinex/quotes_ETHUSD_20240614
["timestamp","ask_amount","ask_price","bid_price","bid_amount"]
[1718366916382,2.2597,3520.0,3519.2,0.698]
[1718366917509,2.2597,3519.9,3518.6,1.706]
[1718366917711,2.2597,3519.9,3518.9,0.698]
[1718366917922,0.698,3519.8,3518.7,4.706]
[1718366918102,0.60306,3520.1,3518.7,1.706]
[1718366918103,2.3502,3519.5,3518.7,1.706]
[1718366918280,2.3502,3519.5,3518.2,3.0]
[1718366918512,2.3502,3519.5,3518.3,1.706]
[1718366918706,0.60306,3520.1,3518.5,0.698]
[1718366918707,2.4798,3519.3,3518.5,0.698]
[1718366919500,2.4798,3519.3,3518.3,2.404]
[1718366919828,2.4798,3519.3,3518.4,0.38374451]
[1718366920186,2.4798,3519.3,3518.5,0.698]
[1718366920903,2.4798,3519.3,3518.6,0.05683023]
[1718366921514,2.4798,3519.3,3518.7,0.698]
[1718366921709,2.4798,3519.3,3518.8,0.05682926]
[1718366922022,2.4798,3519.3,3518.8,0.75482926]
[1718366922739,2.4798,3519.3,3518.9,0.05682927]
[1718366922919,2.3606,3519.6,3518.9,0.05682927]
[1718366923233,2.3606,3519.6,3518.8,0.698]
[1718366924423,2.3606,3519.6,3518.9,0.05682516]
[1718366924735,2.3606,3519.6,3518.8,0.698]
[1718366933846,2.3606,3519.6,3518.4,2.08974451]
[1718366934010,2.4959,3519.4,3518.6,0.698]
[1718366934206,2.4959,3519.4,3518.5,0.67559915]
[1718366934623,2.4959,3519.4,3518.3,1.706]
[1718366935037,2.4959,3519.4,3518.4,0.698]
[1718366935437,2.4959,3519.4,3518.3,4.706]
[1718366935438,2.4299,3519.2,3518.3,4.706]
[1718366935754,2.4299,3519.2,3518.3,0.698]
[1718366935924,2.4299,3519.2,3518.4,0.5404]
[1718366936576,1.92483463,3520.0,3518.1,4.706]
[1718366936577,0.698,3519.1,3518.1,4.706]
[1718366936849,2.4849,3519.0,3517.9,1.706]
[1718366937016,2.4849,3518.8,3518.0,2.404]
[1718366937222,2.4849,3518.8,3518.1,0.68374451]
[1718366937834,2.3587,3518.6,3517.7,2.404]
[1718366938036,2.3587,3518.6,3517.7,1.706]
[1718366938332,2.3587,3518.6,3517.8,0.698]
[1718366938738,0.698,3518.5,3517.6,1.706]
[1718366938936,2.4283,3518.4,3517.6,1.706]
[1718366939137,2.4283,3518.4,3517.7,0.1706]
[1718366939541,2.4203,3518.2,3516.9,0.32199662]
[1718366939754,0.698,3518.3,3516.5,0.698]
[1718366939755,0.698,3517.4,3516.5,0.698]
[1718366940067,2.4203,3517.3,3516.0,2.421]
[1718366940223,2.4203,3517.3,3516.5,0.698]
[1718366940425,3.0,3518.2,3516.7,0.698]
[1718366940649,5.45515585,3519.1,3517.6,0.698]
[1718366940650,7.27,3518.9,3517.6,0.698]
[1718366940837,0.698,3518.7,3517.6,0.698]
[1718366941023,0.698,3518.5,3517.6,0.698]
[1718366941220,4.43344514,3518.8,3517.4,0.698]
[1718366941221,0.698,3518.3,3517.4,0.698]
[1718366941556,0.698,3518.3,3517.2,2.404]
[1718366941764,2.4356,3518.4,3517.3,0.2404]
[1718366941765,0.698,3518.1,3517.3,0.2404]
[1718366941967,0.698,3518.1,3517.2,0.698]
[1718366942266,0.698,3518.1,3517.1,0.698]
[1718366942945,0.698,3517.7,3516.8,3.21314451]
[1718366943263,0.698,3517.5,3516.8,0.21314451]
[1718366943563,2.4356,3517.6,3516.8,0.21314451]
[1718366944153,0.698,3517.5,3516.6,0.698]
[1718366944480,0.698,3517.5,3516.5,3.0]
[1718366944481,0.698,3517.5,3516.5,0.698]
[1718366944770,2.4356,3517.6,3516.5,3.0]
[1718366944771,0.698,3517.3,3516.5,3.0]
[1718366944922,0.698,3517.3,3516.4,1.706]
[1718366945827,0.698,3517.3,3516.3,0.698]
[1718366945828,0.698,3517.1,3516.2,0.698]
[1718366946065,0.698,3517.1,3516.3,0.2404]
[1718366947131,0.698,3517.1,3516.2,3.698]
[1718366947132,0.698,3516.7,3515.8,4.706]
[1718366947327,0.698,3516.7,3515.9,0.698]
[1718366947528,2.3278,3517.0,3515.9,0.698]
[1718366947529,0.698,3516.9,3515.9,0.698]
[1718366947824,2.3278,3517.0,3515.2,5.2735]
[1718366947825,0.698,3516.7,3515.6,0.698]
[1718366948137,2.3278,3517.0,3516.1,0.698]
[1718366948343,2.276,3516.8,3515.4,1.706]
[1718366948571,0.698,3516.7,3515.8,0.698]
[1718366948876,0.698,3516.7,3515.4,1.706]
[1718366949164,0.698,3516.7,3515.8,0.698]
[1718366949370,1.13874451,3516.7,3515.3,1.706]
[1718366949552,1.13874451,3516.7,3515.1,0.34065082]
[1718366949553,3.74984514,3516.6,3515.1,0.34065082]
[1718366949752,0.028,3515.0,3514.4,0.64065082]
[1718366949970,0.028,3515.0,3514.9,0.698]
[1718366950469,0.028,3515.0,3514.5,1.43344514]
[1718366950638,0.028,3515.0,3514.9,0.698]
[1718366952375,0.028,3515.0,3514.9,0.556]
[1718366952684,0.028,3515.0,3514.9,0.698]
[1718366952862,0.028,3515.0,3514.9,1.679]
[1718366957157,0.028,3515.0,3514.8,4.706]
[1718366957372,0.028,3515.0,3514.9,1.679]
[1718366958578,0.028,3515.0,3514.9,2.33824096]
[1718366960574,0.028,3515.0,3514.9,5.4776861]
[1718366960873,0.028,3515.0,3514.9,8.81833692]
[1718366962561,2.3547,3516.2,3515.1,1.706]
[1718366962764,2.3547,3517.1,3516.1,1.679]
[1718366962966,2.39591514,3517.0,3516.1,1.679]
[1718366963287,1.43344514,3517.0,3516.1,1.679]
[1718366965375,2.3547,3517.1,3516.1,1.679]
[1718366965580,3.78814514,3517.1,3516.1,1.679]
[1718366965952,2.3547,3517.1,3516.2,0.05687663]
[1718366966558,2.3547,3517.1,3516.1,1.679]
[1718366966758,2.3547,3517.1,3516.1,2.1469]
[1718366968061,1.43344514,3517.0,3516.1,1.679]
[1718366968257,2.3188,3516.9,3515.7,1.679]
[1718366969585,2.3188,3516.9,3516.2,1.679]
[1718366969778,2.3188,3516.9,3516.5,1.679]
[1718366970082,2.3188,3516.9,3516.1,1.679]
[1718366970990,2.55068,3516.9,3515.5,4.706]
[1718366971195,2.55068,3516.9,3515.9,1.679]
[1718366978644,2.55068,3516.9,3515.4,4.706]
[1718366978842,2.55068,3516.9,3515.8,1.679]
[1718366979147,0.255068,3516.8,3515.8,1.679]
[1718366979365,2.3188,3516.9,3515.9,0.05687862]
[1718366981077,2.3188,3516.9,3516.6,0.699]
[1718366981561,2.3188,3516.9,3516.8,0.699]
[1718366982859,2.3188,3516.9,3516.1,1.678]
[1718366983045,2.3188,3516.9,3516.1,2.07833]
[1718366987284,2.3188,3516.9,3516.1,1.678]
[1718366991444,2.3188,3516.9,3516.0,1.678]
[1718366995398,2.3188,3516.9,3515.7,3.0]
[1718366995580,2.3188,3516.9,3515.7,1.678]
[1718366995778,2.3188,3516.9,3515.7,4.678]
[1718366996801,2.3188,3516.9,3515.7,1.678]
[1718367002280,2.3188,3516.9,3516.1,1.678]
[1718367004220,2.3188,3516.9,3516.2,0.05687564]
[1718367005118,2.3188,3516.9,3516.8,0.699]
[1718367009951,2.3188,3516.9,3516.0,0.05687145]
[1718367010152,2.1768,3516.9,3516.8,0.699]
[1718367010729,2.1768,3516.9,3516.6,0.699]
[1718367010917,2.1768,3516.9,3515.8,10.27]
[1718367011251,2.1768,3516.9,3516.5,0.699]
[1718367011919,2.1488,3516.9,3516.5,0.699]
[1718367012558,2.1488,3516.9,3516.7,0.699]
[1718367017667,2.1488,3516.9,3516.2,0.05687179]
[1718367017869,2.1488,3516.9,3516.8,0.699]
[1718367018873,2.3003,3517.4,3516.8,0.699]
[1718367019171,2.3003,3517.4,3517.2,0.699]
[1718367021639,0.24813438,3517.5,3517.2,0.699]
[1718367021834,0.24813438,3517.5,3517.4,0.699]
[1718367023985,2.405,3518.0,3517.4,0.699]
[1718367024364,2.405,3518.0,3517.9,0.699]
[1718367025107,2.4252,3518.6,3517.9,0.699]
[1718367025271,3.85864514,3518.6,3517.9,0.699]
[1718367025906,3.85864514,3518.6,3517.2,0.05685487]
[1718367026089,3.85864514,3518.6,3518.0,0.699]
[1718367026386,0.38586451,3518.5,3518.0,0.699]
[1718367029478,0.38586451,3518.5,3517.8,0.699]
[1718367029817,2.4946,3518.4,3517.8,0.699]
[1718367033230,2.4946,3518.4,3518.0,0.699]
[1718367034782,2.4946,3518.4,3517.7,0.0568521]
[1718367035020,3.0,3519.0,3518.3,0.699]
[1718367035021,2.3748,3518.8,3518.3,0.699]
[1718367040132,2.3748,3518.8,3517.6,2.392]
[1718367040333,2.3748,3518.8,3518.2,0.699]
[1718367040498,0.38082451,3518.7,3518.2,0.699]
[1718367040693,2.4953,3518.5,3517.3,7.27]
[1718367040941,3.92874514,3518.4,3517.3,7.27]
[1718367041125,4.47874514,3518.4,3517.7,0.699]
[1718367041737,4.47874514,3518.4,3517.9,0.699]
[1718367042236,4.47874514,3518.4,3517.8,0.699]
[1718367053654,2.332,3518.9,3518.0,0.699]
[1718367053834,2.332,3518.9,3517.8,2.4221]
[1718367053835,7.04780171,3518.9,3518.2,0.699]
[1718367054984,7.04780171,3518.9,3518.0,0.699]
[1718367055489,7.53932208,3518.9,3518.0,0.699]
[1718367055710,7.04780171,3518.9,3518.0,0.699]
[1718367055890,0.82383221,3518.8,3518.0,0.699]
[1718367056097,1.31535258,3518.8,3518.0,0.699]
[1718367060012,1.31535375,3518.8,3518.0,0.699]
[1718367062296,2.4144,3518.6,3517.6,0.699]
[1718367062503,2.4144,3518.4,3517.6,0.699]
[1718367062802,1.43344514,3518.3,3517.6,0.699]
[1718367063213,1.43344514,3518.3,3517.8,0.699]
[1718367064206,1.93735164,3518.3,3517.8,0.699]
[1718367064406,1.43344514,3518.3,3517.8,0.699]
[1718367067434,2.4144,3518.4,3517.4,0.05685702]
[1718367067642,2.4144,3518.4,3518.0,0.699]
[1718367068758,2.4144,3518.4,3517.4,0.05685702]
[1718367068907,2.4144,3518.4,3517.9,0.699]
[1718367071939,2.4144,3518.4,3517.9,0.557]
[1718367073043,2.4144,3518.4,3517.9,0.529]
[1718367074527,2.2746,3518.9,3518.3,0.699]
[1718367074732,0.49154021,3519.1,3518.8,0.699]
[1718367074960,2.2746,3519.2,3518.8,0.699]
[1718367075167,1.43344514,3519.1,3518.4,0.699]
[1718367075376,2.2663,3519.0,3518.4,0.699]
[1718367075580,1.43344514,3518.9,3518.4,0.699]
[1718367076393,1.43344514,3518.9,3517.8,3.0]
[1718367076543,1.43344514,3518.9,3517.4,2.95570519]
[1718367076544,2.9834,3518.8,3517.4,2.95570519]
[1718367076862,2.4334,3518.6,3518.0,0.699]
[1718367077159,3.86684514,3518.6,3518.0,0.699]
[1718367082235,0.36997451,3518.8,3518.2,0.699]
[1718367082437,2.4656,3518.9,3518.2,0.699]
[1718367082637,3.89904514,3518.9,3518.2,0.699]
[1718367084278,3.89904514,3518.9,3518.4,0.699]
[1718367084473,2.2518,3519.3,3518.7,0.699]
[1718367084696,3.68524514,3519.3,3518.1,0.30439729]
[1718367084862,3.68524514,3519.3,3518.6,0.699]
[1718367085662,2.2518,3519.3,3518.8,0.699]
[1718367085857,3.24131765,3519.5,3518.8,0.699]
[1718367086089,1.14134177,3519.4,3519.0,0.699]
[1718367086282,2.74988002,3519.5,3519.0,0.699]
[1718367087268,2.74988002,3519.5,3518.6,2.376]
[1718367087468,2.74988002,3519.5,3519.0,0.699]
[1718367087695,0.284,3519.5,3519.0,0.699]
[1718367089894,2.84210023,3519.9,3519.4,0.699]
[1718367090098,2.84210023,3519.9,3518.6,4.082]
[1718367090099,0.49140023,3519.9,3519.3,2.3368]
[1718367090424,0.49134534,3520.2,3519.2,0.699]
[1718367090575,1.52165534,3520.2,3518.6,2.3368]
[1718367090926,1.43344514,3520.1,3519.2,0.699]
[1718367091407,1.43344514,3520.1,3519.4,0.699]
[1718367091408,2.3518,3520.0,3519.4,0.699]
[1718367093694,1.43344514,3520.1,3519.4,0.699]
[1718367094892,3.0,3520.3,3519.4,0.699]
[1718367095091,2.3852,3520.4,3519.6,0.699]
[1718367095420,0.23852,3520.3,3519.6,0.699]
[1718367096507,0.23852,3520.3,3519.8,0.699]
[1718367101555,0.23852,3520.3,3519.4,2.2943]
[1718367101556,0.23852,3520.3,3519.7,0.699]
[1718367101847,3.699,3520.7,3519.7,0.699]
[1718367102049,1.98344514,3520.6,3519.7,0.699]
[1718367103152,1.98344514,3520.6,3519.4,2.2943]
[1718367103352,1.98344514,3520.6,3519.7,0.699]
[1718367103554,2.3606,3520.5,3519.7,0.699]
[1718367103758,0.80430451,3520.4,3519.7,0.699]
[1718367103929,0.699,3520.2,3519.1,2.308]
[1718367104137,3.79404514,3520.1,3519.2,0.699]
[1718367104361,0.99930451,3520.0,3519.0,7.27]
[1718367104574,2.43274965,3520.0,3519.2,0.699]
[1718367105450,1.43344514,3519.9,3519.0,7.27]
[1718367105649,0.55,3519.8,3519.0,0.699]
[1718367105857,1.43344514,3519.7,3519.0,0.699]
[1718367106059,2.2809,3519.5,3519.0,0.699]
[1718367108840,2.2809,3519.5,3518.5,5.4662]
[1718367109087,2.2809,3519.5,3519.0,0.699]
[1718367112204,0.19834451,3519.6,3519.0,0.699]
[1718367112496,1.63178965,3519.6,3519.2,0.699]
[1718367113047,0.19834451,3519.6,3519.4,0.699]
[1718367113261,0.19834451,3519.6,3519.1,2.3217]
[1718367113474,2.4013,3519.8,3519.3,0.699]
[1718367113750,3.83474514,3519.8,3519.3,0.699]
[1718367114648,1.43344514,3519.8,3519.3,0.699]
[1718367114877,2.3576,3520.1,3519.3,0.699]
[1718367115078,1.98344514,3520.0,3519.5,0.699]
[1718367115391,2.56834032,3520.0,3519.3,0.699]
[1718367116152,0.58489518,3520.0,3519.3,0.699]
[1718367117355,2.3576,3520.1,3519.3,0.699]
[1718367117556,3.79104514,3520.1,3519.3,0.699]
[1718367119412,1.43344514,3520.1,3519.3,0.699]
[1718367120605,1.43344514,3520.1,3519.5,0.699]
[1718367121488,1.43344514,3520.1,3519.1,2.3217]
[1718367121708,1.43344514,3520.1,3519.1,2.55387]
[1718367121944,1.43344514,3520.1,3519.4,0.699]
[1718367126371,2.2674,3520.4,3519.6,0.699]
[1718367126561,3.70084514,3520.4,3519.6,0.699]
[1718367127249,2.2674,3520.4,3519.6,0.699]
[1718367127623,2.2674,3520.4,3519.7,2.3807]
[1718367127928,3.0,3520.6,3520.0,0.699]
[1718367128141,1.43344514,3520.6,3520.1,0.699]
[1718367128317,3.0,3520.6,3520.1,0.699]
[1718367128702,2.406,3520.7,3520.1,0.699]
[1718367128902,3.83944514,3520.7,3520.1,0.699]
[1718367129261,3.75384451,3520.6,3519.9,0.699]
[1718367129405,3.83944514,3520.7,3519.9,0.699]
[1718367130172,3.83944514,3520.7,3520.1,0.699]
[1718367131348,3.83944514,3520.7,3519.7,2.3807]
[1718367131560,3.83944514,3520.7,3520.0,0.699]
[1718367134334,2.406,3520.7,3520.0,0.699]
[1718367134529,2.406,3520.7,3520.0,1.01265167]
[1718367134748,2.406,3520.7,3520.2,0.699]
[1718367142592,3.0,3521.1,3520.2,0.699]
[1718367142799,3.80994514,3521.0,3520.2,0.699]
[1718367143301,3.80911831,3521.0,3520.1,0.699]
[1718367145007,3.80911831,3521.0,3519.8,0.23807]
[1718367145171,3.80911831,3521.0,3520.2,0.699]
[1718367149087,3.80911831,3521.0,3519.8,0.23807]
[1718367149409,3.80911831,3521.0,3520.2,0.699]
[1718367149608,4.63294983,3521.0,3520.2,0.699]
[1718367150109,2.3287,3520.9,3520.2,0.699]
[1718367155121,2.3287,3520.9,3520.4,0.699]
[1718367156624,2.3287,3520.9,3520.2,0.699]
[1718367156929,2.3287,3520.9,3520.4,0.699]
[1718367157639,0.44470218,3521.1,3520.8,0.699]
[1718367158197,0.44470218,3521.1,3520.4,0.3032]
[1718367158703,0.44470218,3521.1,3520.5,0.699]
[1718367159858,2.4767,3520.9,3519.8,2.66647]
[1718367160132,3.91014514,3520.9,3520.3,0.699]
[1718367160430,3.91014514,3520.9,3520.5,0.699]
[1718367160924,3.91014514,3520.9,3520.3,0.699]
[1718367164327,3.91014514,3520.9,3519.9,3.0]
[1718367164531,3.91014514,3520.9,3520.2,0.699]
[1718367164897,3.91014514,3520.9,3520.0,0.566647]
[1718367165097,3.91014514,3520.9,3520.0,0.699]
[1718367167739,3.91014514,3520.9,3520.2,0.699]
[1718367171011,1.14370218,3521.1,3519.5,2.3547]
[1718367171012,2.3295,3520.7,3519.5,2.3547]
[1718367171211,4.46194514,3520.7,3519.5,2.3547]
[1718367171564,2.3295,3520.4,3519.6,0.53547]
[1718367171716,1.43344514,3520.3,3519.5,0.699]
[1718367172425,1.43344514,3520.3,3519.7,0.699]
[1718367174251,2.3295,3520.4,3519.9,0.699]
[1718367178656,2.3295,3520.4,3519.8,0.699]
[1718367180152,2.3295,3520.4,3519.8,0.99512]
[1718367180314,2.2866,3520.8,3520.0,0.699]
[1718367180518,3.72004514,3520.8,3520.0,0.699]
[1718367183165,4.41904514,3520.8,3519.9,0.699]
[1718367183365,0.84603103,3520.7,3519.9,0.699]
[1718367183665,0.84603103,3520.7,3519.6,2.2622]
[1718367183666,2.3325,3520.5,3519.6,0.699]
[1718367183866,2.4161,3520.3,3519.0,2.4515]
[1718367184028,3.84954514,3520.3,3519.5,0.699]
[1718367184230,3.84954514,3520.3,3519.0,2.4515]
[1718367184527,3.84954514,3520.3,3519.5,0.699]
[1718367185527,3.84954514,3520.3,3519.0,2.4515]
[1718367185722,3.84954514,3520.3,3519.5,0.699]
[1718367185981,4.30439965,3520.3,3519.5,0.699]
[1718367186750,2.3081,3520.2,3519.4,0.699]
[1718367188061,2.3861,3520.1,3519.0,2.4515]
[1718367188261,2.3861,3520.1,3519.3,0.699]
[1718367190071,2.3861,3520.1,3519.0,2.4515]
[1718367190312,2.438,3519.9,3519.2,0.699]
[1718367191992,3.87144514,3519.9,3518.8,2.2985]
[1718367192203,3.87144514,3519.9,3518.5,2.3534]
[1718367192204,2.4157,3519.8,3518.5,2.3534]
[1718367192803,2.3484,3519.6,3518.8,0.699]
[1718367193576,3.78184514,3519.6,3518.5,2.3534]
[1718367193778,3.78184514,3519.6,3518.6,0.23534]
[1718367194007,3.78184514,3519.6,3518.9,0.699]
[1718367196224,3.78184514,3519.6,3518.6,0.23534]
[1718367196526,2.2909,3519.5,3518.8,0.699]
[1718367200071,2.2909,3519.5,3518.6,0.23534]
[1718367200210,2.2909,3519.5,3518.8,0.699]
[1718367201958,2.2909,3519.5,3519.0,0.699]
[1718367205242,2.3979,3519.9,3519.0,0.312]
[1718367205443,2.88929901,3520.1,3519.8,0.699]
[1718367205639,2.3979,3520.3,3519.8,0.699]
[1718367213169,0.49139901,3520.8,3520.2,0.699]
[1718367213359,3.77734514,3520.8,3520.2,0.699]
[1718367213559,4.19954987,3520.8,3520.4,0.699]
[1718367213760,1.43344514,3520.7,3520.4,0.699]
[1718367213989,2.76610473,3520.8,3520.2,0.699]
[1718367214264,4.19954987,3520.8,3520.2,0.699]
[1718367218505,4.19954987,3520.8,3519.2,2.3435]
[1718367218669,3.77734514,3520.8,3520.1,0.699]
[1718367223316,1.43344514,3520.7,3520.1,0.699]
[1718367225217,1.43344514,3520.7,3519.7,2.3435]
[1718367225418,0.55,3520.6,3520.0,0.699]
[1718367225633,1.86617965,3520.5,3520.0,0.699]
[1718367225963,1.43344514,3520.5,3520.0,0.699]
[1718367230158,1.43344514,3520.5,3520.2,0.699]
[1718367230881,2.306,3520.4,3519.4,2.2969]
[1718367231169,1.43344514,3520.5,3520.2,0.699]
[1718367231717,2.819,3520.6,3520.2,0.699]
[1718367231962,3.70244514,3520.6,3519.9,2.2945]
[1718367232259,3.70244514,3520.6,3520.2,0.699]
[1718367232467,2.3439,3520.9,3520.2,0.699]
[1718367232759,1.98344514,3520.8,3520.4,0.699]
[1718367232918,1.43344514,3520.8,3520.4,0.699]
[1718367233249,0.21762901,3521.0,3520.4,0.699]
[1718367233566,1.65107415,3521.0,3520.6,0.699]
[1718367235060,1.65107415,3521.0,3520.8,0.699]
[1718367235061,1.43344514,3521.0,3520.8,0.699]
[1718367235481,1.43344514,3521.0,3520.6,0.699]
[1718367236488,0.44470218,3521.1,3520.6,0.699]
[1718367236787,0.44470218,3521.1,3520.7,0.699]
[1718367237691,0.44470218,3521.1,3520.6,0.31418]
[1718367237984,0.44470218,3521.1,3520.8,0.699]
[1718367240189,2.3771,3521.4,3520.8,0.699]
[1718367240500,1.43344514,3521.3,3520.8,0.699]
[1718367240999,2.3771,3521.4,3521.2,0.699]
[1718367241806,2.3771,3521.4,3521.0,0.699]
[1718367245407,2.3771,3521.4,3520.7,2.2609]
[1718367245583,2.3771,3521.4,3521.1,0.699]
[1718367246106,2.3771,3521.4,3520.7,2.48699]
[1718367248874,0.1222501,3521.5,3521.3,0.699]
[1718367250247,0.1222501,3521.5,3520.2,2.3892]
[1718367250407,0.1222501,3521.5,3521.4,0.699]
[1718367255711,1.55569524,3521.5,3520.4,2.3136]
[1718367255893,2.2643,3521.4,3520.4,5.3136]
[1718367256088,0.1222501,3521.5,3520.4,5.3136]
[1718367256302,2.2643,3521.4,3521.0,0.699]
[1718367256500,2.2643,3521.4,3520.5,0.42967945]
[1718367256501,2.2643,3521.4,3520.5,3.0]
[1718367256844,1.43344514,3521.3,3519.9,0.2907735]
[1718367256983,0.55,3521.2,3520.7,0.699]
[1718367257184,3.69774514,3521.1,3520.7,0.699]
[1718367257406,0.42477451,3521.0,3520.7,0.699]
[1718367257624,1.85821965,3521.0,3520.7,0.699]
[1718367258130,1.43344514,3520.9,3519.6,2.3136]
[1718367258299,2.3727,3520.7,3519.6,2.3136]
[1718367258504,2.41905965,3520.6,3519.1,2.3864]
[1718367258705,2.41905965,3520.6,3520.0,0.699]
[1718367259018,2.41905965,3520.6,3520.2,0.699]
[1718367259224,2.41905965,3520.6,3519.1,2.3864]
[1718367259225,2.41905965,3520.6,3520.0,0.699]
[1718367265439,2.41905965,3520.6,3520.2,0.699]
[1718367265655,0.47917596,3520.5,3520.2,0.699]
[1718367265833,1.43344514,3520.4,3520.2,0.699]
[1718367270450,3.41677451,3521.0,3520.2,0.699]
[1718367270451,0.42477451,3521.0,3520.2,0.699]
[1718367270678,0.42477451,3521.0,3520.5,0.699]
[1718367270679,1.43344514,3520.9,3520.5,0.699]
[1718367270966,0.72536197,3520.8,3520.5,0.699]
[1718367274946,0.72536197,3520.8,3519.8,0.05681208]
[1718367274947,1.43344514,3520.9,3520.7,0.699]
[1718367275151,2.3954,3521.1,3520.7,0.699]
[1718367275468,9.7275,3521.4,3520.9,0.699]
[1718367275674,1.43344514,3521.3,3520.9,0.699]
[1718367281615,1.43344514,3521.3,3520.1,2.3035]
[1718367281816,2.367,3521.1,3520.4,0.699]
[1718367282051,1.86848965,3521.0,3520.4,0.699]
[1718367282254,1.86848965,3521.0,3520.6,0.699]
[1718367282817,1.86848965,3521.0,3520.4,0.699]
[1718367286727,3.2329559,3521.0,3520.4,0.699]
[1718367286923,1.86848965,3521.0,3520.4,0.699]
[1718367287318,3.2329559,3521.0,3520.4,0.699]
[1718367288125,1.86848965,3521.0,3520.4,0.699]
[1718367288552,1.86848965,3521.0,3520.6,0.699]
[1718367289462,1.43344514,3521.0,3520.6,0.699]
[1718367292752,1.3643904,3521.4,3520.9,0.699]
[1718367292951,1.43344514,3521.3,3520.9,0.699]
[1718367293151,2.2717837,3521.3,3520.9,0.699]
[1718367299234,3.6360985,3521.3,3520.9,0.699]
[1718367300536,2.2717837,3521.3,3520.9,0.699]
[1718367300746,1.43344514,3521.3,3520.9,0.699]
[1718367300963,1.3643148,3521.4,3520.9,0.699]
[1718367301185,0.44463696,3521.3,3521.1,0.699]
[1718367302576,0.44463696,3521.3,3521.2,2.2613]
[1718367304444,0.44463696,3521.3,3521.2,2.9603]
[1718367305965,0.44463696,3521.3,3521.2,3.25633]
[1718367306172,0.44463696,3521.3,3521.2,2.55733]
[1718367306372,0.44463696,3521.3,3521.2,3.25633]
[1718367310482,0.44463696,3521.3,3521.2,0.99503]
[1718367310799,0.44463696,3521.3,3521.2,0.699]
[1718367318167,0.44463696,3521.3,3521.0,2.3669]
[1718367318471,0.44463696,3521.3,3521.2,0.699]
[1718367319489,0.1222501,3521.5,3521.2,0.699]
[1718367319690,0.1222501,3521.5,3521.4,0.699]
[1718367320101,0.1222501,3521.5,3521.4,3.0515]
[1718367320302,0.1222501,3521.5,3521.4,3.35665]
[1718367320828,0.1222501,3521.5,3521.4,2.65765]
[1718367321036,0.1222501,3521.5,3521.4,3.35665]
[1718367327898,0.1222501,3521.5,3521.4,2.65765]
[1718367328099,0.1222501,3521.5,3521.4,3.35665]
[1718367328504,0.1222501,3521.5,3521.4,2.65765]
[1718367328704,0.1222501,3521.5,3521.1,2.2931]
[1718367328900,0.1222501,3521.5,3520.4,1.706]
[1718367328901,2.4628501,3521.5,3520.5,2.2931]
[1718367329312,1.43344514,3521.4,3519.7,2.4372]
[1718367329551,0.55,3521.3,3519.7,2.4372]
[1718367329853,2.08438339,3521.2,3520.5,0.65538]
[1718367330133,2.08438339,3521.2,3520.5,0.56814]
[1718367330495,2.08438339,3521.2,3520.7,0.699]
[1718367330936,2.417,3521.0,3519.8,0.2722208]
[1718367331145,1.43344514,3520.9,3519.4,7.27]
[1718367331298,1.43344514,3520.9,3519.3,4.1891]
[1718367331500,1.43344514,3520.9,3520.3,0.699]
[1718367332939,1.43344514,3520.9,3520.4,0.699]
[1718367333412,0.44004451,3520.8,3520.4,0.699]
[1718367335042,0.44004451,3520.8,3520.5,0.04360096]
[1718367337537,0.65093825,3521.2,3520.6,0.699]
[1718367337713,0.65093825,3521.2,3519.9,2.4013]
[1718367337714,2.4074,3521.3,3520.8,0.699]
[1718367337900,3.84084514,3521.3,3520.8,0.699]
[1718367339440,2.4074,3521.3,3520.8,0.699]
[1718367342453,2.4074,3521.3,3519.9,2.4013]
[1718367342743,2.4074,3521.3,3520.7,0.699]
[1718367342944,0.25296501,3521.2,3520.7,0.699]
[1718367343558,0.25296501,3521.2,3519.6,7.27]
[1718367343559,2.4165,3521.0,3519.6,7.27]
[1718367343754,2.68244514,3521.1,3519.6,7.27]
[1718367343755,2.4165,3520.8,3519.6,7.27]
[1718367344049,1.43344514,3520.7,3520.0,0.699]
[1718367344443,1.43344514,3520.7,3520.1,0.04417033]
[1718367344640,0.38499451,3520.6,3520.1,0.04417033]
[1718367344846,0.38499451,3520.6,3520.2,0.699]
[1718367345353,0.38499451,3520.6,3520.3,0.04403615]
[1718367345954,0.38499451,3520.6,3520.0,0.699]
[1718367346417,0.38499451,3520.6,3520.1,0.04417033]
[1718367346621,0.42349397,3520.5,3520.1,0.04417033]
[1718367346856,2.4898,3520.5,3520.1,0.04417033]
[1718367347156,2.4898,3520.5,3519.0,1.706]
[1718367347157,2.2967,3520.1,3519.2,0.699]
[1718367347315,1.43344514,3520.0,3519.2,0.699]
[1718367347821,1.87635965,3520.0,3519.2,0.699]
[1718367349038,1.87635965,3520.0,3519.4,0.699]
[1718367349533,1.87635965,3520.0,3519.3,0.699]
[1718367351858,1.87635965,3520.0,3518.7,2.4666]
[1718367352180,1.87635965,3520.0,3519.2,0.699]
[1718367352471,0.41730597,3519.9,3519.2,0.699]
[1718367352614,1.85075111,3519.9,3519.2,0.699]
[1718367353024,1.85075111,3519.9,3519.3,0.04491544]
[1718367354429,1.85075111,3519.9,3519.2,0.699]